Cogmind - Beta 14 @@@ ROGUE MODE // 2024.09.07 @ 18:57:54 Player: JohnnyDongs Result: Destroyed by G-67 Veteran with Plasma Rifle Performance ------------- Evolutions (4) 2000 Regions Visited (7) 1400 Robots Destroyed (169) 845 Value Destroyed (4540) 4540 Prototype IDs (4) 80 Alien Tech Used (0) 0 Bonus (918) 918 TOTAL SCORE: 9783 Bonus ------- High Alert Combat Kills 563 Follower Combat Kills 149 Entered DSFs 500 Friendly Fire -294 Cogmind --------- Core Integrity 0/850 Matter 300/300 Energy 43/100 System Corruption 3% Temperature Warm (142) Movement Core (500) Ox9 Location -6/Factory Parts ------- > --- POWER (2) -------- (None) > --- PROPULSION (4) --- (None) > --- UTILITY (6) ------ Large Storage Unit > --- WEAPON (3) ------- Heavy Plasma Cannon > --- INVENTORY (15) --- Improved Signal Interpreter Plasma Cannon Plasma Cannon Phase Cannon Phase Cannon Phase Cannon Gauss Rifle Gauss Rifle Remote Datajack Peak State ------------ > --- POWER ------------ Improved Ion Engine Improved Ion Engine > --- PROPULSION ------- Advanced Treads Advanced Treads Advanced Treads Advanced Treads > --- UTILITY ---------- Cooling System Cooling System Large Storage Unit Gravity Neutralizer Hardened Medium Armor Plating Hardened Medium Armor Plating > --- WEAPON ----------- Plasma Cannon Plasma Cannon Plasma Cannon > --- INVENTORY -------- Armored Treads Advanced Treads Advanced Treads Improved Signal Interpreter Hardened Medium Armor Plating Hardened Medium Armor Plating Hardened Medium Armor Plating Plasma Cannon Phase Cannon Phase Cannon Phase Cannon Heavy Plasma Cannon Long-range Missile Launcher Datajack Great Maul [Rating: 50] Favorites ----------- Power Improved Ion Engine Engine Improved Ion Engine Propulsion Light Treads Treads Light Treads Leg Improved Titanium Leg Wheel Compact Wheel Hover Unit Gravmag System Flight Unit Improved Flight Unit Utility Large Storage Unit Device Cooling System Storage Large Storage Unit Processor Transport Network Coupler Hackware System Shield Protection Hardened Medium Armor Plating Weapon Advanced Beam Cannon Energy Gun Heavy EM Pulse Gun Energy Cannon Advanced Beam Cannon Ballistic Gun Assault Rifle Launcher Grenade Launcher Impact Weapon Great Maul Build | -11 -10 -10 -9 -8 -7 -7 -6 ------- Run | Yrd Mat Min Mat Mat Fac DSF Fac Slots Evolved 8 | . . . 2 2 2 . 2 Power 1 | . . . . . . . 1 Propulsion 2 | . . . . 2 . . . Utility 4 | . . . 2 . 1 . 1 Weapon 1 | . . . . . 1 . . Parts Attached 130 | 8 12 4 29 30 3 20 24 Power 11 | 1 3 1 2 2 . . 2 Engine 11 | 1 3 1 2 2 . . 2 Core . | . . . . . . . . Reactor . | . . . . . . . . Propulsion 38 | 2 1 1 9 12 1 8 4 Treads 31 | 2 1 1 7 12 1 4 3 Leg 4 | . . . . . . 4 . Wheel 1 | . . . 1 . . . . Hover 1 | . . . . . . . 1 Flight 1 | . . . 1 . . . . Utility 41 | 3 2 1 9 11 1 5 9 Device 17 | 2 1 . 5 5 1 . 3 Storage 3 | 1 1 . . 1 . . . Processor 1 | . . . 1 . . . . Hackware 1 | . . . . 1 . . . Protection 19 | . . 1 3 4 . 5 6 Artifact . | . . . . . . . . Weapon 40 | 2 6 1 9 5 1 7 9 Energy Gun 5 | . . . 4 1 . . . Energy Cannon 21 | . . . 4 4 1 6 6 Ballistic Gun 6 | 2 4 . . . . . . Ballistic Cannon . | . . . . . . . . Launcher 7 | . 2 1 1 . . 1 2 Special Weapon . | . . . . . . . . Impact Weapon 1 | . . . . . . . 1 Slashing Weapon . | . . . . . . . . Piercing Weapon . | . . . . . . . . Special Melee Weapon . | . . . . . . . . Unidentified Prototypes 4 | . . . 2 1 . . 1 Parts Lost 38 | . 1 3 4 5 . 1 24 Power 4 | . . 1 . 1 . . 2 Propulsion 11 | . . 1 1 1 . . 8 Utility 14 | . . 1 2 1 . . 10 Weapon 9 | . 1 . 1 2 . 1 4 Highest Loss Streak 17 | . 1 3 3 1 . 1 17 To Critical Strikes . | . . . . . . . . Average Slot Usage (%) 96 | . 98 99 97 98 99 100 87 Engine 10 | . 13 13 11 8 7 7 9 Treads 26 | . 28 27 19 35 30 10 23 Leg 1 | . . . . . . 19 . Device 13 | . 14 . 21 9 14 15 11 Storage 9 | . 14 14 11 9 7 7 6 Hackware 2 | . . . . 8 7 . . Protection 9 | . . 13 10 8 7 14 17 Energy Gun 1 | . . . 4 . . . . Energy Cannon 13 | . . . 14 17 23 22 15 Ballistic Gun 4 | . 18 18 1 . . . . Launcher 2 | . 8 9 1 . . . . Peak Build Rating 50 | 8 8 10 21 27 34 45 50 Average Rating 22 | 5 7 9 17 24 32 41 40 On Entrance 18 | . 8 8 10 19 26 34 41 Naked Turns . | . . . . . . . . Heaviest Build 86 | 13 31 32 40 45 46 68 86 Greatest Support 100 | 40 40 40 46 80 88 88 100 Greatest Overweight (x) 7 | . . . 2 . . 2 7 Average Overweight (x) . | . . . . . . . . Largest Inventory Capacity 15 | 8 15 15 15 15 15 15 15 Average Capacity 14 | 7 11 15 15 15 15 15 15 Most Carried 15 | 8 12 12 15 15 14 15 15 Average Carried 12 | 4 9 11 13 14 11 14 13 Final Capacity 15 | 8 15 15 15 15 15 15 15 Final Carried 15 | 8 11 12 15 13 14 15 9 Class Distribution -------------------- 48% | Mutant 33% | Scavenger-Mutant 17% | Tank Dominant Class ---------------- Mutant | -10/Materials Mutant | -10/Mines Mutant | -9/Materials Scavenger-Mutant | -8/Materials Scavenger-Tank | -7/Factory Tank | -7/DSF Tank | -6/Factory Resources | -11 -10 -10 -9 -8 -7 -7 -6 ----------- Run | Yrd Mat Min Mat Mat Fac DSF Fac Matter Collected 1833 | 306 298 76 374 273 . 251 255 Remotely . | . . . . . . . . Salvage Created 6369 | 135 294 104 1782 1630 . 503 1921 Parts 326 | 10 28 8 123 79 . 23 55 Haulers Intercepted 10 | . 1 . 5 3 . . 1 Recyclers Shooed 9 | . 1 . 1 3 . . 4 Parts Field Recycled . | . . . . . . . . Retrieved Matter . | . . . . . . . . Parts Self-Destructed . | . . . . . . . . Prevented . | . . . . . . . . Kills | -11 -10 -10 -9 -8 -7 -7 -6 ------- Run | Yrd Mat Min Mat Mat Fac DSF Fac Combat Hostiles Destroyed 107 | . 12 2 30 30 . 11 22 Melee 2 | . . . . . . . 2 Guns 8 | . 5 2 1 . . . . Cannons 61 | . . . 19 28 . 5 9 AOE 24 | . 7 . 9 . . 4 4 Classes Destroyed 17 | 2 6 . 2 3 . 2 2 Worker 9 | . 1 1 3 1 . . 3 Builder 15 | . 2 . 7 2 . . 4 Tunneler 5 | 2 . 1 . 2 . . . Hauler 10 | . 1 . 5 3 . . 1 Recycler 11 | 1 . . 3 1 . . 6 Mechanic 1 | . . . . 1 . . . Watcher 9 | . 2 . 4 2 . . 1 Swarmer 28 | . 6 . 7 7 . 4 4 Grunt 55 | . 6 2 17 14 . 5 11 Brawler 2 | . . . . 1 . . 1 Duelist 1 | . . . . . . 1 . Sentry 12 | . . . 6 6 . . . Specialist 2 | . . . . 2 . . . Hunter 4 | . . . . . . . 4 Programmer 2 | . . . . . . . 2 Heavy 1 | . . . . . . 1 . Zionite 1 | . . . 1 . . . . Thug 1 | . . . 1 . . . . Best Kill Streak 11 | 3 5 1 11 5 . 6 11 Combat Bots Only 9 | . 4 1 7 3 . 6 9 Max Kills in Single Turn 4 | 1 2 1 3 2 . 4 4 Gunslinging . | . . . . . . . . Exploded 4 | . 2 . 3 . . 4 3 Melee 1 | . . . . . . . 1 Uniques/NPCs Destroyed . | . . . . . . . . Combat | -11 -10 -10 -9 -8 -7 -7 -6 -------- Run | Yrd Mat Min Mat Mat Fac DSF Fac Hostile Shots Fired 754 | . 46 25 69 179 . 43 392 Missed 209 | . 17 9 25 47 . 13 98 Damage Taken 8616 | . 398 237 594 1745 . 775 4867 Core 1408 | . 60 17 141 195 . 127 868 Absorbed by Shields . | . . . . . . . . Redirected to Shielding 11 | . . . 11 . . . . Regen/Repaired (Parts) 283 | . . . . 283 . . . Core Remaining (%) 75 | 100 . 69 64 64 . 81 . Volleys Fired 318 | 13 36 13 73 104 2 25 52 Largest 3 | 2 2 2 2 2 3 3 3 Hottest 240 | 40 40 40 136 136 204 240 240 Shots Fired 589 | 26 47 26 117 208 6 58 101 Gun 109 | 26 35 26 22 . . . . Cannon 454 | . . . 87 208 6 56 97 Launcher 26 | . 12 . 8 . . 2 4 Special . | . . . . . . . . Kinetic 87 | 26 35 26 . . . . . Thermal 458 | . . . 92 208 6 56 96 Explosive 26 | . 12 . 8 . . 2 4 Electromagnetic 18 | . . . 17 . . . 1 Robot Hit Streak 19 | 5 10 11 14 16 . 18 19 Robot Miss Streak 4 | 2 1 3 3 4 . 3 3 Penetration Max . | . . . . . . . . Secondary Targets . | . . . . . . . . Shots Hit Robots 406 | 14 30 14 76 144 . 38 90 Core Hits 214 | 6 29 5 58 55 . 18 43 Critical Kills 7 | . . . 2 2 . 2 1 Critical Parts Destroyed 8 | . 1 . . . . . 7 Critical Strikes 16 | . 1 . 3 2 . 2 8 Burn 1 | . . . 1 . . . . Meltdown 7 | . . . 2 2 . 2 1 Destroy 1 | . 1 . . . . . . Smash 7 | . . . . . . . 7 Melee Attacks 40 | . . . . . . . 40 Impact 40 | . . . . . . . 40 Slashing . | . . . . . . . . Piercing . | . . . . . . . . Sneak Attacks 4 | . . . . . . . 4 Combat Hostiles . | . . . . . . . . Follow-up Attacks . | . . . . . . . . Damage Inflicted 12416 | 111 1204 171 2523 3088 . 1129 4190 Guns 758 | 111 268 135 244 . . . . Cannons 6921 | . . . 1339 3020 . 849 1713 Explosions 2911 | . 928 . 926 . . 280 777 Melee 1623 | . . . . . . . 1623 Ramming 203 | . 8 36 14 68 . . 77 Kinetic 514 | 111 268 135 . . . . . Thermal 7062 | . . . 1480 3020 . 849 1713 Explosive 2849 | . 928 . 864 . . 280 777 Electromagnetic 165 | . . . 165 . . . . Impact 1623 | . . . . . . . 1623 Slashing . | . . . . . . . . Piercing . | . . . . . . . . Highest Corruption 3 | . . . 2 . . . 3 Average Corruption 2 | . . . 2 . . . 2 Corruption Purged . | . . . . . . . . Corruption Blocked . | . . . . . . . . Effects 19 | . . . 13 . . . 6 Message Errors 4 | . . . 2 . . . 2 Matter Fused 4 | . . . 2 . . . 2 Heat Flow Errors 1 | . . . 1 . . . . Energy Discharges 2 | . . . 2 . . . . Parts Fused 1 | . . . 1 . . . . Data Loss (minor) 3 | . . . 1 . . . 2 Misfires 3 | . . . 3 . . . . Weapon Failures 1 | . . . 1 . . . . Overload Shots . | . . . . . . . . Overflow Damage 744 | . 15 . 57 27 . 3 642 Projectiles 58 | . . . . 27 . . 31 Explosions 131 | . 15 . 57 . . 3 56 Melee 555 | . . . . . . . 555 Knockbacks 9 | . . . . . . . 9 Impact 9 | . . . . . . . 9 Kinetic . | . . . . . . . . Secondary . | . . . . . . . . Self-Inflicted Damage 114 | . 63 . 33 . . . 18 Shots 6 | . 4 . 1 . . . 1 Rammed 17 | . 1 2 2 7 . . 5 Targets Rammed 25 | . 1 4 3 10 . . 7 Kicked . | . . . . . . . . Crushed 8 | . . 2 1 3 . . 2 Highest Temperature 318 | . 18 21 257 318 . 214 246 Average Temperature 65 | . 6 9 52 80 . 66 67 Received Heat Transfer 2430 | . 144 135 264 630 . 153 1104 Siege Activations . | . . . . . . . . Robots Corrupted 7 | . . . . . . . 7 Combat Hostiles 5 | . . . . . . . 5 Parts Fried 12 | . . . 1 . . . 11 Impact Corruptions 16 | . . . . . . . 16 Robots Melted 8 | . . . 2 2 . 2 2 Combat Hostiles 7 | . . . 1 2 . 2 2 Parts Melted 38 | . . . 7 17 . 2 12 Heat Transferred 12769 | . . . 2603 5365 . 1601 3200 Parts Sabotaged . | . . . . . . . . Parts Stolen . | . . . . . . . . Parts Stripped . | . . . . . . . . Power Chain Reactions 1 | . . . 1 . . . . Alert | -11 -10 -10 -9 -8 -7 -7 -6 ------- Run | Yrd Mat Min Mat Mat Fac DSF Fac Peak Influence 928 | 15 332 133 928 560 229 434 589 Initial 344 | . 9 88 . 344 229 163 227 Average 319 | 6 162 118 484 346 229 293 334 Maximum Alert Level 3 | . 1 . 3 2 1 2 2 Low Security (%) 29 | 100 74 100 9 12 . 33 9 Level 1 39 | . 26 . 35 53 100 38 53 Level 2 24 | . . . 31 33 . 28 36 Level 3 5 | . . . 24 . . . . Level 4 . | . . . . . . . . Level 5 . | . . . . . . . . High Security . | . . . . . . . . Max Security . | . . . . . . . . Sterilizations 1 | . . . . . . 1 . Squads Dispatched 21 | . 1 . 6 8 . 1 5 Investigation 9 | . . . 4 5 . . . Extermination 1 | . . . . . . . 1 Reinforcement 9 | . 1 . 1 3 . 1 3 Assault 2 | . . . 1 . . . 1 Garrison . | . . . . . . . . Intercept . | . . . . . . . . Searches Triggered . | . . . . . . . . Construction Impeded 3 | . . . . 1 . . 2 Haulers Reinforced . | . . . . . . . . Active Scanning Responses . | . . . . . . . . Cargo Convoy Interrupts . | . . . . . . . . Stealth | -11 -10 -10 -9 -8 -7 -7 -6 --------- Run | Yrd Mat Min Mat Mat Fac DSF Fac Distress Signals 6 | . . . 4 1 . . 1 Communications Jammed . | . . . . . . . . Distress Signals . | . . . . . . . . Times Spotted 163 | . 17 2 48 46 . 11 39 Peak Tracking Total 10 | . 4 2 8 5 . 4 10 Tactical Retreats 9 | . . . 1 5 . . 3 Traps | -11 -10 -10 -9 -8 -7 -7 -6 ------- Run | Yrd Mat Min Mat Mat Fac DSF Fac Traps Triggered 8 | . 4 . 1 3 . . . Indirectly . | . . . . . . . . Trap Hack Attempts . | . . . . . . . . Triggered . | . . . . . . . . Disarmed . | . . . . . . . . Reprogrammed . | . . . . . . . . Reused . | . . . . . . . . Traps Extracted . | . . . . . . . . Installed . | . . . . . . . . Triggered . | . . . . . . . . Machines | -11 -10 -10 -9 -8 -7 -7 -6 ---------- Run | Yrd Mat Min Mat Mat Fac DSF Fac Machines Disabled 11 | . 1 . 3 4 . 1 2 Max in Single Turn 1 | . 1 . 1 1 . 1 1 Machines Repaired . | . . . . . . . . Machines Dismantled . | . . . . . . . . Machines Sabotaged . | . . . . . . . . Overloaded Fab Kills . | . . . . . . . . Hacking | -11 -10 -10 -9 -8 -7 -7 -6 --------- Run | Yrd Mat Min Mat Mat Fac DSF Fac Machines Accessed 27 | . 6 . 7 8 2 . 4 Terminals 21 | . 5 . 6 6 1 . 3 Fabricators . | . . . . . . . . Repair Stations 2 | . . . . 2 . . . Recycling Units 4 | . 1 . 1 . 1 . 1 Scanalyzers . | . . . . . . . . Garrison Access . | . . . . . . . . Total Hacks 87 | . 21 . 21 35 2 . 8 Successful 39 | . 10 . 6 19 1 . 3 Failed 48 | . 11 . 15 16 1 . 5 Catastrophic 15 | . 1 . 2 8 . . 4 Database Lockouts . | . . . . . . . . Manual 40 | . 13 . 12 14 . . 1 Terminals 72 | . 20 . 19 25 1 . 7 Fabricators . | . . . . . . . . Repair Stations 10 | . . . . 10 . . . Recycling Units 5 | . 1 . 2 . 1 . 1 Scanalyzers . | . . . . . . . . Garrison Access . | . . . . . . . . Terminal Hacks 24 | . 6 . 5 10 1 . 2 Robot Analysis 6 | . 4 . 1 1 . . . Open DSF 1 | . . . . . 1 . . Branch Access Points 1 | . . . . 1 . . . Terminal Index 3 | . 1 . 1 1 . . . Alert Level 7 | . . . 2 3 . . 2 Unreport Threat 3 | . . . . 3 . . . Locate Traps 1 | . . . 1 . . . . Hauler Manifests 2 | . 1 . . 1 . . . Fabricator Hacks . | . . . . . . . . Repair Station Hacks 8 | . . . . 8 . . . Scan Component 4 | . . . . 4 . . . Repair 4 | . . . . 4 . . . Recycling Unit Hacks 2 | . 1 . . . . . 1 Report Inventory 2 | . 1 . . . . . 1 Scanalyzer . | . . . . . . . . Garrison Access Hacks . | . . . . . . . . Unauthorized Hacks 5 | . 3 . 1 1 . . . Terminals 4 | . 3 . . 1 . . . Track 1 | . 1 . . . . . . Assimilate 1 | . 1 . . . . . . Botnet 1 | . . . . 1 . . . Operators 1 | . 1 . . . . . . Fabricators . | . . . . . . . . Repair Stations . | . . . . . . . . Recycling Units 1 | . . . 1 . . . . Tunnel 1 | . . . 1 . . . . Scanalyzers . | . . . . . . . . Garrison Access . | . . . . . . . . Data Cores Recovered 1 | . . . 1 . . . . Used . | . . . . . . . . Hacking Detections 23 | . 5 . 6 8 1 . 3 Full Trace Events 10 | . 2 . 4 4 . . . Feedback Events . | . . . . . . . . Feedback Blocked . | . . . . . . . . Robot Schematics Acquired . | . . . . . . . . Robots Built . | . . . . . . . . Authchips . | . . . . . . . . Time . | . . . . . . . . Total Robot Build Rating . | . . . . . . . . Part Schematics Acquired . | . . . . . . . . Parts Built . | . . . . . . . . Authchips . | . . . . . . . . Time . | . . . . . . . . Total Part Build Rating . | . . . . . . . . Parts Repaired 4 | . . . . 4 . . . Time 147 | . . . . 147 . . . Parts Recycled . | . . . . . . . . Recycled Matter . | . . . . . . . . Retrieved Matter . | . . . . . . . . Retrieved Components . | . . . . . . . . Parts Scanalyzed . | . . . . . . . . Part Schematics Acquired . | . . . . . . . . Parts Damaged . | . . . . . . . . Bothacking | -11 -10 -10 -9 -8 -7 -7 -6 ------------ Run | Yrd Mat Min Mat Mat Fac DSF Fac Used RIF Installer . | . . . . . . . . Robots Hacked . | . . . . . . . . Non-combat . | . . . . . . . . Combat . | . . . . . . . . Robot Hacks Applied . | . . . . . . . . Relay Couplers Released . | . . . . . . . . Fabnet Peak Effective % . | . . . . . . . . Robots Rewired . | . . . . . . . . Allies Hacked . | . . . . . . . . Hacks Repelled . | . . . . . . . . Allies | -11 -10 -10 -9 -8 -7 -7 -6 -------- Run | Yrd Mat Min Mat Mat Fac DSF Fac Total Allies 5 | . . 5 . . . . . Largest Group 5 | . . 5 5 . . . . Highest-Rated Group 87 | . . 87 87 . . . . Highest-Rated Ally 31 | . . 31 31 . . . . Total Orders . | . . . . . . . . Ally Attacks 49 | . . . 49 . . . . Total Damage 639 | . . . 639 . . . . Kills 8 | . . . 8 . . . . Allies Corrupted . | . . . . . . . . Allies Melted . | . . . . . . . . Intel | -11 -10 -10 -9 -8 -7 -7 -6 ------- Run | Yrd Mat Min Mat Mat Fac DSF Fac Robot Analysis Total 6 | . 4 . 1 1 . . . Derelict Logs Recovered 1 | . . 1 . . . . . Drone Launches . | . . . . . . . . Drone Recoveries . | . . . . . . . . Exploration | -11 -10 -10 -9 -8 -7 -7 -6 ------------- Run | Yrd Mat Min Mat Mat Fac DSF Fac Turns Passed 5537 | 160 750 416 1249 1743 77 306 836 Spaces Moved 2441 | 67 388 227 587 704 41 104 323 Core 2 | 1 . . . . . . 1 Treads 2229 | 66 388 227 441 704 41 40 322 Legs 64 | . . . . . . 64 . Wheels 146 | . . . 146 . . . . Hover . | . . . . . . . . Flight . | . . . . . . . . Fastest Speed 50 | 50 160 160 115 160 162 130 145 Average Speed 156 | 158 160 160 156 160 162 149 146 Slowest Speed 400 | 160 160 160 240 162 162 270 400 Overloaded Moves . | . . . . . . . . Propulsion Burnouts . | . . . . . . . . Robots Hopped . | . . . . . . . . Cave-ins Triggered . | . . . . . . . . Exploration Rate (%) 43 | 6 68 64 57 60 2 76 11 Regions Visited 7 Branch Regions 1 Pre-discovered Areas 2 | . . 1 1 . . . . Known Exits Taken 1 | . . . . . 1 . . Unknown Exits Taken 5 | 1 1 1 1 1 . . . Scrap Searched 1 | . . 1 . . . . . Spaces Dug 10 | . 9 . . . . . 1 Terrain Destroyed 207 | . 75 . 64 . . 11 57 Melee . | . . . . . . . . Projectile 5 | . . . . . . . 5 AOE 202 | . 75 . 64 . . 11 52 Terrain Rammed . | . . . . . . . . Walls Destroyed . | . . . . . . . . Machines Disabled . | . . . . . . . . Actions | -11 -10 -10 -9 -8 -7 -7 -6 --------- Run | Yrd Mat Min Mat Mat Fac DSF Fac Total 3511 | 98 471 254 809 1107 47 214 511 Wait 398 | 1 24 2 65 227 . 32 47 Move 2434 | 66 387 226 586 703 40 103 323 Hop . | . . . . . . . . Pick Up 67 | 9 6 3 19 10 2 10 8 Fast Attach 57 | 6 6 2 15 11 . 10 7 Attach 30 | 1 1 2 4 7 2 2 11 Detach 7 | . . 1 3 1 . 1 1 Swap 43 | 1 5 . 10 12 1 8 6 Drop 92 | 1 5 1 31 22 . 23 9 Fire 318 | 13 36 13 73 104 2 25 52 Melee 40 | . . . . . . . 40 Ram 1 | . . . 1 . . . . Kick . | . . . . . . . . Crush 24 | . 1 4 2 10 . . 7 Escape Stasis . | . . . . . . . . Rewire . | . . . . . . . . Trap . | . . . . . . . . Miscellaneous . | . . . . . . . . Route ------- -11/Scrapyard -10/Materials (discovered 2 exits: *Mat / [*Min]) -10/Mines (discovered 2 exits: *Mat x2) -9/Materials (discovered 2 exits: *Mat x2) -8/Materials -7/Factory -7/DSF -6/Factory History --------- Turn | Location | Event 54 | -11/Scrapyard | Discovered new exit (range 15) 161 | -11/Scrapyard | Entered Materials 308 | -10/Materials | Build established: Mutant 351 | -10/Materials | Discovered new exit (range 6) 656 | -10/Materials | Discovered new exit (range 16) 911 | -10/Materials | Entered Mines 976 | -10/Mines | Lost 3 parts (1p1n1u) 1047 | -10/Mines | Received a Rocket Launcher from a helpful Derelict 1069 | -10/Mines | Learned location of Recycling (-7) 1071 | -10/Mines | Discovered new exit (range 9) 1284 | -10/Mines | Discovered new exit (range 14) 1306 | -10/Mines | Assisted by bots powering up and referring to "LRC-V3" 1327 | -10/Mines | Entered Materials 1327 | -9/Materials | Accompanied by 5 allies 1327 | -9/Materials | Evolved 2 slots: Utility x2 1332 | -9/Materials | Led the pair of lost Derelicts to an unsafe place 1474 | -9/Materials | Lost 3 allies 1481 | -9/Materials | Destroyed 7 combat bots 1482 | -9/Materials | Lost 3 parts (1n1u1w) 1794 | -9/Materials | Discovered new exit (range 15) 2245 | -9/Materials | Discovered new exit (range 16) 2527 | -9/Materials | First assault squad dispatched 2576 | -9/Materials | Entered another Materials area 2576 | -8/Materials | Evolved 2 slots: Propulsion x2 2762 | -8/Materials | Build established: Scavenger-Mutant 3007 | -8/Materials | Repaired Adv. Beam Cannon 3034 | -8/Materials | Repaired Lgt. Treads 3068 | -8/Materials | Repaired Imp. Ion Engine 3087 | -8/Materials | Discovered new exit (range 8) 3910 | -8/Materials | Repaired Imp. Light Armor Plating 4319 | -8/Materials | Entered Factory 4319 | -7/Factory | Evolved 2 slots: Utility x1, Weapon x1 4396 | -7/Factory | Identified exit to DSF 4396 | -7/Factory | Entered DSF 4445 | -7/DSF | Additional patrols routed to DSF 4549 | -7/DSF | Discovered new exit (range 15) 4615 | -7/DSF | Sterilization system engaged 4635 | -7/DSF | Ambient heat levels rising (+10) 4650 | -7/DSF | Ambient heat levels rising (+10) 4665 | -7/DSF | Ambient heat levels rising (+10) 4680 | -7/DSF | Ambient heat levels rising (+10) 4695 | -7/DSF | Ambient heat levels rising (+10) 4702 | -7/DSF | Entered Factory 4702 | -6/Factory | Evolved 2 slots: Power x1, Utility x1 4726 | -6/Factory | Build established: Tank 5239 | -6/Factory | Destroyed 9 combat bots 5402 | -6/Factory | First assault squad dispatched 5472 | -6/Factory | Lost 17 parts (2p5n7u3w) 5517 | -6/Factory | Core integrity fell below 50% 5530 | -6/Factory | Core integrity fell below 20% 5538 | -6/Factory | Destroyed by G-67 Veteran with Plasma Rifle Last Messages --------------- 05524_ Destroyed Carbon-fiber Leg. 05524_ G-50 Soldier system corrupted by crushing effect. 05524_ R-10 Processor collects Corrupted Com. Wheel. 05525_ G-50 Soldier system terminally corrupted. 05526_ K-01 Serf collects debris. 05532_ Acquired 10 matter. 05532_ K-01 Serf destroyed. 05534_ K-01 Serf collects debris. 05534_ Great Maul destroyed. 05534_ G-50 Soldier destroyed. 05535_ K-01 Serf collects debris. 05536_ G-50 Soldier suffers critical hit (Meltdown). 05536_ Adv. Heat Sink melted. 05536_ Carbon-fiber Leg melted. 05536_ Lgt. Angular Momentum Engine melted. 05537_ K-01 Serf collects debris. 05538_ Critical hit (Burn: +50). Map ----- +----------------------------------------------------+ | ?????????????????????????????????????????????????? | | ?????????????????????????????????????????????????? | | ?????????????????????????????????????????????????? | | ?????????????????????????????????????????????????? | | ?????????????????????????????????????????????????? | | ?????????????????????????????????????????????????? | | ?????????????????????????????????????????????????? | | ?????????????????????????????????????????????????? | | ?????????????????????????????????????????????????? | | ?????????????????????????? ??????????????????? | | ?????????????????????????# ????????????????? | | ?????????????????????????# #???????????????? | | ?????????????????????????# #???????????????? | | ?????????????????????????# #???????????????? | | ?????????????????????????# # ??????????????? | | ?????????????????????????+ +???????????????? | | ?????????????????????????# #???????????????? | | ?????????????????????????# #???????????????? | | ?????????????????????????# #???????????????? | | ?????????????????????????# #???????????????? | | ?????????????????????????# #???????????????? | | ?????????????????????????# ##########??????? | | ??????????????#??????#???# k ?????? | | ?????????????? ??"?? #??# ks ?????? | | ??????????????" "" F" #### ss ?????? | | ??????????????" "" "" + @%% k ??? | | ?????????#??""" ####%%= ? | | ?????????# =#### gi | | ?????????# """ """ %## # | | ?????????# """ """ #######+########k##### | | ?????????# """ """ # %% #??? # | | ?????????# # %% #??? # | | ?????????# # #?? # | | ?????????# # % #?"""" + | | ?????????# = #% % # """" # | | ??????##########/######%% # """" # | | ??????# % %%!/%% % # """" # | | ??????# #### %% # """" # | | ??????# % # ## % # """" # | | ??????# #### % # # | | ??????# #### % # ] # | | ??????# ########### % # ] ] # | | ??????#^^^ ??????????######/####### # | | ??????# ????????????## #%# ##??# / | | ??????# ??????????????## # # ??# # | | ??????# ????????????????# # # # ?#! # | | ??????+ ????????????????# # # #?## # | | ??????? ?????????????????### ####??############### | | ?????????????????????####### ##?????# | | ?????????????????????# + #??????# ! | +----------------------------------------------------+ Best States ------------- Heat Dissipation 81 Energy Generation 19 Energy Capacity 430 Matter Stores 300 Matter Capacity 300 Sight Range 16 Terrain Scan Density 10 Armor Coverage 675 Weapon Shielding 33 Evasion (%) 55 Recoil Reduction 4 Defensive Hacking 10 Item Schematics ----------------- None Robot Schematics ------------------ None Fabricated ------------ Nothing Alien Tech Used ----------------- None Achievements -------------- None Challenges ------------ None Game ------ Seed TacticalReinforcedSpecial Manual? 0 Play Time 01:30:24 Cumulative 65.8 hours Start 2024.09.06 @ 21:41:08 End 2024.09.07 @ 18:57:54 Sessions 2 Manual Loads 0 Difficulty Rogue Special Mode None Game No. 43 Rogue 43 Adventurer 0 Explorer 0 Win Type - Total 0 Types 0/0/0/0/0/0/0/0/0 Lore% 22 Gallery% 46 Achievement% 39 Wizard Run 0 Options --------- Layout 1 ASCII 0 Keyboard 0 Movement Numpad Keybinds 0 Fullscreen 1 Font 24/Smallcaps Map View 50x35 Zoom Use 0% Tactical HUD 1 Map Filters NONE Filters NONE Steam 1 RUN: d63a932a-698c-476a-8dc8-552db87e3417